Cogmind - Beta 17 @@@ ROGUE MODE // 2026.07.16 @ 11:49:55 Player: pinbox Result: Destroyed by G-73 Enforcer with Phase Gun Performance ------------- Evolutions (9) 4500 Regions Visited (16) 3200 Robots Destroyed (65) 325 Value Destroyed (2745) 2745 Prototype IDs (19) 380 Alien Tech Used (1) 200 Bonus (2300) 2300 TOTAL SCORE: 13650 Bonus ------- Registered with UFD 300 Met Optimus in HQ 500 Met Warlord at Base 500 MAIN.C Attacked Warlord 500 Scanned by Researcher 500 Cogmind --------- Core Integrity 0/1600 Matter 12/300 Energy 100/100 System Corruption 5% Temperature Cool (9) Movement Core (50) Location -1/Access Parts ------- > --- POWER (2) -------- (None) > --- PROPULSION (7) --- (None) > --- UTILITY (15) ----- Enhanced Optical Array Advanced Signal Interpreter Advanced Terrain Scan Processor Advanced Terrain Scan Processor Advanced Terrain Scan Processor Core Analyzer > --- WEAPON (2) ------- (None) > --- INVENTORY (5) ---- Light Quantum Reactor Linear Accelerator Linear Accelerator Peak State ------------ > --- POWER ------------ Light Antimatter Reactor Light Antimatter Reactor > --- PROPULSION ------- Improved Antigrav System Improved Antigrav System Improved Antigrav System Improved Antigrav System Improved Antigrav System > --- UTILITY ---------- Experimental Power Amplifier Large Storage Unit Quantum Shading Machine Experimental Optical Array Long-range Sensor Array Advanced Signal Interpreter Terrain Scanner Advanced Terrain Scan Processor Improved Target Analyzer Advanced Target Analyzer Core Analyzer Layered Medium Armor Plating Layered Medium Armor Plating AEGIS Remote Shield > --- WEAPON ----------- Centrium Greatsword > --- INVENTORY -------- Micro Antimatter Reactor Nuclear Pulse Array Field Propulsion Array Enhanced Gauss Cannon Heavy Missile Launcher Makeshift Sword Makeshift Sword Makeshift Sword [Rating: 150] Favorites ----------- Power Light Nuclear Core Engine Improved Deuterium Engine Power Core Light Nuclear Core Reactor Light Antimatter Reactor Propulsion Gravmag Array Treads Light Treads Leg Centrium Leg Wheel Subdweller Monowheel Hover Unit Gravmag Array Flight Unit Xenon Bombardment Thruster Utility Core Analyzer Device Advanced Sensor Array Storage Medium Storage Unit Processor Core Analyzer Hackware Improved System Shield Protection Enhanced Scrap Shield Weapon Great Axe Energy Gun Small Laser Ballistic Gun Gauss Rifle Ballistic Cannon Enhanced Gauss Cannon Launcher Heavy Missile Launcher Slashing Weapon Great Axe Build | -11 -10 -10 -7 -7 -5 -5 -5 -4 -4 -4 -4 -3 -3 -3 -2 -1 ------- Run | Yrd Mat Sub Rec Scr Fac Upp Upp Fac Upp Upp War Pro Res Tes Res Acc Slots Evolved 18 | . . . . . 10 . . 2 . . . . 2 . 2 2 Power 1 | . . . . . . . . . . . . . 1 . . . Propulsion 5 | . . . . . 2 . . 1 . . . . 1 . . 1 Utility 12 | . . . . . 8 . . 1 . . . . . . 2 1 Weapon . | . . . . . . . . . . . . . . . . . Parts Attached 123 | 7 1 6 7 3 22 1 3 4 7 3 2 . 3 21 23 10 Power 15 | 1 . 1 1 1 2 . . . 1 . . . 1 3 4 . Engine 4 | 1 . 1 1 . 1 . . . . . . . . . . . Core 4 | . . . . 1 1 . . . 1 . . . 1 . . . Reactor 7 | . . . . . . . . . . . . . . 3 4 . Propulsion 32 | 2 . 1 4 . 3 . . 1 3 . . . 2 3 11 2 Treads 7 | 2 . . 3 . . . . . . . . . . . 2 . Leg 1 | . . . . . . . . . . . . . . . . 1 Wheel 3 | . . 1 1 . . . . . 1 . . . . . . . Hover 12 | . . . . . 3 . . 1 2 . . . 2 3 1 . Flight 9 | . . . . . . . . . . . . . . . 8 1 Utility 56 | 2 1 3 1 1 14 1 2 3 2 1 . . . 13 5 7 Device 21 | 1 . 1 1 1 7 . . 1 . . . . . 6 1 2 Storage 3 | 1 1 . . . . . . 1 . . . . . . . . Processor 21 | . . . . . 5 . 1 1 . 1 . . . 5 3 5 Hackware 3 | . . . . . 2 . 1 . . . . . . . . . Protection 8 | . . 2 . . . 1 . . 2 . . . . 2 1 . Artifact . | . . . . . . . . . . . . . . . . . Weapon 20 | 2 . 1 1 1 3 . 1 . 1 2 2 . . 2 3 1 Energy Gun 2 | 2 . . . . . . . . . . . . . . . . Energy Cannon . | . . . . . . . . . . . . . . . . . Ballistic Gun 6 | . . 1 . . 2 . . . . . . . . . 3 . Ballistic Cannon 3 | . . . . . 1 . 1 . . . . . . . . 1 Launcher 1 | . . . . . . . . . 1 . . . . . . . Special Weapon . | . . . . . . . . . . . . . . . . . Impact Weapon . | . . . . . . . . . . . . . . . . . Slashing Weapon 8 | . . . 1 1 . . . . . 2 2 . . 2 . . Piercing Weapon . | . . . . . . . . . . . . . . . . . Special Melee Weapon . | . . . . . . . . . . . . . . . . . Unidentified Prototypes 11 | . . . . . 2 1 . . . . . 1 . 6 . 1 Parts Lost 58 | . . 5 2 . 10 1 . 2 1 1 . . . 10 21 5 Power 11 | . . 1 1 . 2 . . 1 . . . . . 3 3 . Propulsion 21 | . . 2 1 . 2 . . . 1 . . . . 2 11 2 Utility 18 | . . 1 . . 5 . . 1 . . . . . 5 5 1 Weapon 8 | . . 1 . . 1 1 . . . 1 . . . . 2 2 Highest Loss Streak 10 | . . 2 2 . 4 1 . 2 1 1 . . . 9 10 2 To Critical Strikes 2 | . . 1 . . . . . . . . . . . . 1 . Average Backups 6 | . 2 4 8 6 4 3 3 4 8 8 11 13 12 11 5 2 Power . | . 1 . . . . . . . . . 1 1 1 . . . Propulsion 2 | . . . . . 2 2 2 2 4 4 4 4 5 3 1 . Utility 2 | . . 2 6 5 . . . 1 2 2 2 1 1 2 . . Weapon 1 | . . . 1 1 1 1 1 1 1 1 4 5 5 4 2 1 Tool/Special . | . . . . . . . . . . . . . . . . . Unused Backups 14 | . . . 1 2 2 . 1 . . . 2 1 1 1 2 1 Power . | . . . . . . . . . . . . . . . . . Propulsion 5 | . . . . . 2 . . . . . . . 1 1 1 . Utility 2 | . . . . 2 . . . . . . . . . . . . Weapon 7 | . . . 1 . . . 1 . . . 2 1 . . 1 1 Tool/Special . | . . . . . . . . . . . . . . . . . Average Slot Usage (%) 77 | . 100 80 71 89 64 80 82 77 73 85 89 89 87 87 48 24 Engine 3 | . 14 13 6 6 1 . . . . . . . . . . . Core 3 | . . . . 7 2 5 5 4 2 5 5 5 9 3 . . Treads 8 | . 28 12 17 28 3 . . . . . . . . . . . Hover 7 | . . . . . 7 11 11 14 14 15 15 15 14 16 7 . Device 13 | . 14 7 12 14 9 23 17 15 15 21 21 20 18 14 6 1 Storage 6 | . 14 13 14 14 2 . . 2 5 5 5 5 4 4 1 . Processor 11 | . . . . . 17 17 18 18 21 21 21 20 18 24 13 15 Hackware 2 | . . . . . 5 5 8 7 5 5 5 5 4 3 . . Protection 2 | . . 3 . . . 4 5 4 1 5 5 9 9 3 2 . Energy Gun 2 | . 28 21 . . . . . . . . . . . . . . Ballistic Gun 1 | . . 4 . . . 3 4 3 4 . . . . . 2 1 Slashing Weapon 6 | . . . 13 18 7 . . . . 5 10 10 9 8 1 . Peak Build Rating 150 | 7 7 11 14 22 72 81 82 94 89 89 91 96 112 147 150 57 Average Rating 55 | 5 7 7 10 18 49 80 80 84 72 87 90 95 110 124 80 41 On Entrance 58 | . 7 7 9 14 22 72 81 81 65 83 89 91 96 112 147 13 Avg Prop Armor Cover (%) 14 | . . . 8 . 10 . . 10 11 . . 5 . . 40 23 Naked Turns . | . . . . . . . . . . . . . . . . . Heaviest Build 88 | 13 18 27 26 29 31 38 38 57 51 51 44 46 51 86 88 25 Greatest Support 92 | 40 40 40 40 40 40 40 40 52 52 52 52 52 66 92 85 30 Greatest Overweight (x) 8 | . . 8 6 . 1 . . 1 8 . . 1 . 1 8 . Average Overweight (x) . | . . . . . . . . . 1 . . . . . . . Largest Inventory Capacity 15 | 8 10 10 10 10 10 5 5 15 15 15 15 15 15 15 15 5 Average Capacity 10 | 7 9 9 10 10 7 5 5 9 15 15 15 15 15 15 8 5 Most Carried 15 | 1 3 8 10 10 8 5 5 11 12 10 14 15 15 15 14 5 Average Carried 7 | . 2 5 9 7 4 4 4 6 10 9 12 14 14 13 6 2 Final Capacity 15 | 8 10 10 10 10 5 5 5 15 15 15 15 15 15 15 5 5 Final Carried 15 | 1 3 8 10 9 5 4 5 11 9 10 14 14 15 13 5 3 Class Distribution -------------------- 42% | Mutant 14% | Derelict-Ninja 10% | Derelict-Scout 6% | Gladiator 4% | Infiltrator-Scout 4% | Derelict-Mutant 3% | Scavenger-Scout 3% | Hacker-Scout 3% | Derelict-Gladiator Dominant Class ---------------- Mutant | -10/Materials Mutant | -10/Subcaves Mutant | -7/Recycling Mutant | -7/Scraptown Derelict-Gladiator | -5/Factory Infiltrator-Scout | -5/Upper Caves Hacker-Scout | -5/Upper Caves Derelict-Scout | -4/Factory Derelict-Mutant | -4/Upper Caves Derelict-Ninja | -4/Upper Caves Derelict-Ninja | -4/Warlord Derelict-Ninja | -3/Proximity Caves Derelict-Ninja | -3/Research Derelict-Ninja | -3/Testing Mutant | -2/Research Mutant | -1/Access Resources | -11 -10 -10 -7 -7 -5 -5 -5 -4 -4 -4 -4 -3 -3 -3 -2 -1 ----------- Run | Yrd Mat Sub Rec Scr Fac Upp Upp Fac Upp Upp War Pro Res Tes Res Acc Matter Collected 2400 | 183 . 312 50 60 212 23 239 223 343 162 . 60 . 276 166 91 Remotely . | . . . . . . . . . . . . . . . . . Salvage Created 3130 | 40 20 394 165 . 768 43 137 222 200 23 . 138 . 604 350 26 Parts 169 | 7 2 26 13 . 24 1 . 13 13 1 . 10 . 37 22 . Haulers Intercepted 2 | . . . . . 1 . . . . . . . . 1 . . Recyclers Shooed 1 | . . . . . 1 . . . . . . . . . . . Parts Field Recycled . | . . . . . . . . . . . . . . . . . Retrieved Matter . | . . . . . . . . . . . . . . . . . Parts Self-Destructed 28 | . . 16 . . . . . . 4 . . 8 . . . . Prevented 2 | . . . . . . 1 . . . 1 . . . . . . Parts Restored . | . . . . . . . . . . . . . . . . . Kills | -11 -10 -10 -7 -7 -5 -5 -5 -4 -4 -4 -4 -3 -3 -3 -2 -1 ------- Run | Yrd Mat Sub Rec Scr Fac Upp Upp Fac Upp Upp War Pro Res Tes Res Acc Combat Hostiles Destroyed 54 | . 1 11 2 . 10 1 1 4 4 1 . 2 . 5 11 1 Melee 22 | . . . 2 . 10 . . . . . . 2 . 5 3 . Guns 17 | . 1 11 . . . . . 2 . . . . . . 2 1 Cannons 5 | . . . . . . 1 1 2 . 1 . . . . . . AOE 10 | . . . . . . . . . 4 . . . . . 6 . Classes Destroyed 15 | 1 1 2 2 . 4 . 1 1 1 . . . . 1 1 . Worker 1 | . . . . . 1 . . . . . . . . . . . Builder 4 | . . . 1 . . . . . . . . . . 3 . . Tunneler 3 | 2 . . . . . . . . . . . . . . 1 . Hauler 2 | . . . . . 1 . . . . . . . . 1 . . Drone 3 | . . . . . . . . . . . . . . . 3 . Turret 2 | . . 2 . . . . . . . . . . . . . . Swarmer 19 | . 1 6 . . . . . . 4 . . . . . 7 1 Grunt 8 | . . . . . 8 . . . . . . . . . . . Researcher 2 | . . . . . . . . . . . . . . 2 . . Sentry 5 | . . . 2 . . . 1 1 . . . . . . 1 . Hunter 4 | . . . . . 2 . . . . . . . . 2 . . Programmer 9 | . . . . . . . . 3 . 1 . 2 . 3 . . Subdweller 5 | . . 5 . . . . . . . . . . . . . . Packrat 1 | . . . . . . . . . 1 . . . . . . . Samaritan 4 | . . . . . . . 2 . 2 . . . . . . . Thug 1 | . . . . . . 1 . . . . . . . . . . Best Kill Streak 6 | 2 1 6 2 . 3 1 1 2 4 1 . 2 . 2 6 1 Combat Bots Only 6 | . 1 6 1 . 3 1 1 2 4 1 . 2 . 2 6 1 Max Kills in Single Turn 4 | 1 1 1 1 . 1 1 1 1 4 1 . 1 . 1 4 1 Gunslinging . | . . . . . . . . . . . . . . . . . Exploded 4 | . . . . . . . . . 4 . . . . . 4 . Melee 1 | . . . 1 . 1 . . . . . . 1 . 1 1 . Uniques/NPCs Destroyed . | . . . . . . . . . . . . . . . . . Combat | -11 -10 -10 -7 -7 -5 -5 -5 -4 -4 -4 -4 -3 -3 -3 -2 -1 -------- Run | Yrd Mat Sub Rec Scr Fac Upp Upp Fac Upp Upp War Pro Res Tes Res Acc Hostile Shots Fired 1166 | . 2 160 27 . 99 15 12 82 21 5 . 20 8 122 391 202 Missed 491 | . . 58 8 . 30 7 6 34 11 2 . 9 4 42 194 86 Hits 675 | . 2 102 19 . 69 8 6 48 10 3 . 11 4 80 197 116 Melee 1 | . . . . . . . . . . . . . . 1 . . Projectile 674 | . 2 102 19 . 69 8 6 48 10 3 . 11 4 79 197 116 AOE 1 | . . 1 . . . . . . . . . . . . . . Critical Strikes 16 | . . 2 . . 2 . . 2 . . . . . 3 4 3 Part Disruptions 2 | . . . . . . . . . . . . 1 . . . 1 Damage Taken 12840 | . 53 1080 130 . 1236 160 142 889 208 47 . 169 80 1583 4652 2411 Core 3906 | . . 121 38 . 280 . . 134 24 . . 18 . 283 1404 1604 Absorbed by Shields 121 | . . . . . . . . . . . . . . 72 49 . Ignored by Resistances 54 | . . . . . . . . . . 14 . 40 . . . . Regen/Repaired (Parts) 158 | . . . . . . . . 72 . . 86 . . . . . Core Remaining (%) 62 | 100 . . . 36 . . 72 . . . . 84 . 78 3 . Volleys Fired 156 | 2 3 42 . . 1 5 13 20 32 5 . . . 12 10 11 Largest 2 | 2 2 2 . . 2 2 2 2 2 1 . . . 1 2 1 Hottest 80 | 80 80 80 . . 63 75 75 75 67 47 . . . 47 60 54 Shots Fired 242 | 4 8 84 . . 2 10 26 34 33 5 . . . 12 13 11 Gun 175 | 4 8 84 . . 2 5 13 14 26 . . . . . 10 9 Cannon 63 | . . . . . . 5 13 20 6 5 . . . 12 . 2 Launcher 4 | . . . . . . . . . 1 . . . . . 3 . Special . | . . . . . . . . . . . . . . . . . Kinetic 167 | . . 25 . . 2 10 26 34 32 5 . . . 12 10 11 Thermal 71 | 4 8 59 . . . . . . . . . . . . . . Explosive 4 | . . . . . . . . . 1 . . . . . 3 . Electromagnetic . | . . . . . . . . . . . . . . . . . Robot Hit Streak 22 | 3 6 22 . . . 5 11 6 6 3 . . . 4 9 6 Robot Miss Streak 3 | . 1 2 . . . 1 3 2 3 1 . . . . 1 1 Penetration Max 1 | . . . . . . . . . 1 . . . . . . . Secondary Targets 3 | . . 3 . . . . . . . . . . . . . . Max Gunslinging Chain 1 | . . 1 . . . . . . . . . . . . . . Shots Hit Robots 272 | 3 6 64 6 . 63 4 17 15 19 4 . 5 . 42 16 8 Core Hits 122 | 2 1 24 3 . 21 2 5 9 13 1 . 4 . 17 18 2 Critical Kills 2 | . . . . . . . . 1 1 . . . . . . . Critical Parts Destroyed 1 | . . . . . . . . 1 . . . . . . . . Critical Strikes 37 | . . . 1 . 17 2 4 4 1 1 . 1 . 5 1 . Destroy 3 | . . . . . . . . 2 1 . . . . . . . Blast 9 | . . . . . . 2 4 2 . 1 . . . . . . Sever 25 | . . . 1 . 17 . . . . . . 1 . 5 1 . Melee Attacks 180 | . . . 6 . 83 . . . . . . 7 3 68 13 . Impact . | . . . . . . . . . . . . . . . . . Slashing 180 | . . . 6 . 83 . . . . . . 7 3 68 13 . Piercing . | . . . . . . . . . . . . . . . . . Sneak Attacks 13 | . . . 3 . 7 . . . . . . . . 3 . . Combat Hostiles 1 | . . . . . 1 . . . . . . . . . . . Follow-up Attacks 14 | . . . . . 5 . . . . . . 1 . 8 . . Damage Inflicted 9261 | 35 61 829 348 . 2825 143 417 392 598 170 . 188 . 1635 1405 215 Guns 2059 | 35 61 829 . . . 25 167 227 363 . . . . . 151 201 Cannons 742 | . . . . . . 118 250 165 . 170 . . . 39 . . Explosions 916 | . . . . . . . . . 235 . . . . . 681 . Melee 5530 | . . . 348 . 2825 . . . . . . 188 . 1596 573 . Ramming 14 | . . . . . . . . . . . . . . . . 14 Kinetic 2191 | . . 315 . . . 143 417 392 363 170 . . . 39 151 201 Thermal 610 | 35 61 514 . . . . . . . . . . . . . . Explosive 916 | . . . . . . . . . 235 . . . . . 681 . Electromagnetic . | . . . . . . . . . . . . . . . . . Impact . | . . . . . . . . . . . . . . . . . Slashing 5530 | . . . 348 . 2825 . . . . . . 188 . 1596 573 . Piercing . | . . . . . . . . . . . . . . . . . Highest Corruption 16 | . 1 1 1 . . . . 3 3 5 5 2 . 16 11 5 Average Corruption 3 | . 1 1 1 . . . . 2 3 4 5 1 . 12 5 4 Corruption Purged . | . . . . . . . . . . . . . . . . . Corruption Blocked . | . . . . . . . . . . . . . . . . . Effects 81 | . 4 8 6 . . . . 3 17 4 . 6 . 25 3 5 Message Errors 16 | . 1 1 1 . . . . 1 2 2 . . . 7 . 1 Matter Fused 29 | . . 5 1 . . . . 2 8 1 . 3 . 7 . 2 Heat Flow Errors 10 | . . . 2 . . . . . 3 . . 1 . 3 1 . Energy Discharges 7 | . 1 1 2 . . . . . 1 . . . . . . 2 Data Loss (minor) 11 | . . 1 . . . . . . 2 1 . 1 . 4 2 . Data Loss (major) 3 | . . . . . . . . . . . . 1 . 2 . . Misfires 2 | . 2 . . . . . . . . . . . . . . . Alerts 2 | . . . . . . . . . 1 . . . . 1 . . Misdirections 1 | . . . . . . . . . . . . . . 1 . . Overload Shots . | . . . . . . . . . . . . . . . . . Overflow Damage 372 | . . . 60 . 217 . 32 . . . . . . 21 42 . Projectiles 32 | . . . . . . . 32 . . . . . . . . . Explosions 8 | . . . . . . . . . . . . . . . 8 . Melee 332 | . . . 60 . 217 . . . . . . . . 21 34 . Knockbacks 5 | . . . . . . 2 . . . 3 . . . . . . Impact . | . . . . . . . . . . . . . . . . . Kinetic 5 | . . . . . . 2 . . . 3 . . . . . . Secondary . | . . . . . . . . . . . . . . . . . Self-Inflicted Damage 40 | . . . . . . . . . 28 . . . . . 5 7 Shots 2 | . . . . . . . . . 1 . . . . . 1 . Rammed 5 | . . . . . . . . . . . . . . . . 5 Targets Rammed 6 | . . . . . . . . . . . . . . . . 6 Kicked 1 | . . . . . . . . . . . . . . . . 1 Crushed . | . . . . . . . . . . . . . . . . . Highest Temperature 374 | 18 36 12 91 . 1 6 12 8 229 . . 136 12 374 330 . Average Temperature 117 | 12 18 6 53 . 1 4 6 4 109 . . 92 7 148 123 . Received Heat Transfer 1134 | . . 303 30 . 417 66 45 36 21 . . . . 14 85 117 Effects 13 | . . . . . . . . . . . . . . 12 1 . Shutdowns 4 | . . . . . . . . . . . . . . 3 1 . Energy Bleed 5 | . . . . . . . . . . . . . . 5 . . Interference 4 | . . . . . . . . . . . . . . 4 . . Siege Activations . | . . . . . . . . . . . . . . . . . Martial Activations . | . . . . . . . . . . . . . . . . . Shielding Activations . | . . . . . . . . . . . . . . . . . Robots Disrupted . | . . . . . . . . . . . . . . . . . Combat Hostiles . | . . . . . . . . . . . . . . . . . Robots Corrupted . | . . . . . . . . . . . . . . . . . Combat Hostiles . | . . . . . . . . . . . . . . . . . Parts Fried . | . . . . . . . . . . . . . . . . . Impact Corruptions . | . . . . . . . . . . . . . . . . . Robots Melted . | . . . . . . . . . . . . . . . . . Combat Hostiles . | . . . . . . . . . . . . . . . . . Parts Melted 5 | . . 5 . . . . . . . . . . . . . . Heat Transferred 1400 | 75 150 1175 . . . . . . . . . . . . . . Parts Sabotaged . | . . . . . . . . . . . . . . . . . Parts Stolen . | . . . . . . . . . . . . . . . . . Parts Stripped . | . . . . . . . . . . . . . . . . . Power Chain Reactions . | . . . . . . . . . . . . . . . . . Alert | -11 -10 -10 -7 -7 -5 -5 -5 -4 -4 -4 -4 -3 -3 -3 -2 -1 ------- Run | Yrd Mat Sub Rec Scr Fac Upp Upp Fac Upp Upp War Pro Res Tes Res Acc Maximum Alert Level 2 | . . . . . . . . . . . . . . . 2 2 Low Security (%) 85 | 100 100 . 100 . 100 . . 100 . . . . 100 100 45 20 Level 1 11 | . . . . . . . . . . . . . . . 31 74 Level 2 3 | . . . . . . . . . . . . . . . 22 5 Level 3 . | . . . . . . . . . . . . . . . . . Level 4 . | . . . . . . . . . . . . . . . . . Level 5 . | . . . . . . . . . . . . . . . . . High Security . | . . . . . . . . . . . . . . . . . Max Security . | . . . . . . . . . . . . . . . . . Peak Influence 523 | 10 20 . 45 . 125 . . 123 . . . . 104 76 523 409 Initial 313 | . . . 42 . . . . . . . . . . 58 12 313 Average 72 | . 2 . 8 . 39 . . 14 . . . . 22 27 219 276 Influence Increases 3382 | 10 20 220 136 . 422 90 20 257 150 30 . 65 148 365 989 460 Destroy 0b10 Robot/C 1040 | . 20 160 40 . 200 . 20 80 80 20 . 40 . 140 220 20 Destroy 0b10 Robot/NC 50 | 10 . . 5 . 10 . . . . . . . . 20 5 . Destroy Leader 134 | . . . . . 32 . . 20 10 10 . 10 . 22 30 . Successful Hack 260 | . . . 91 . 39 . . 14 . . . . 24 64 14 14 Disable Machine 60 | . . . . . 15 . . . . . . . . 45 . . Destroy Structure 143 | . . . . . 6 . . 38 . . . . 4 14 75 6 Partial Spotted 165 | . . . . . 60 . . 30 . . . . . . 45 30 Lose Combat Pursuer 1530 | . . 60 . . 60 90 . 75 60 . . 15 120 60 600 390 Influence Decreases 2981 | 10 20 132 224 . 382 130 20 134 270 33 . 65 44 446 489 582 Entered New Map 376 | . . . 46 . . 15 . . 46 2 . . . 46 11 210 Time Decay 2026 | 10 20 102 178 . 282 105 20 114 214 30 . 65 44 344 276 222 Search Patrol Dispatched 100 | . . . . . . . . . . . . . . . . 100 Lost Part 475 | . . 30 . . 100 10 . 20 10 1 . . . 52 202 50 Lost Ally 4 | . . . . . . . . . . . . . . 4 . . Squads Dispatched 26 | . . . . . 4 . . 2 . . . . 1 4 10 5 Investigation 10 | . . . . . 3 . . . . . . . 1 . 4 2 Extermination 11 | . . . . . 1 . . 2 . . . . . 2 4 2 Reinforcement 5 | . . . . . . . . . . . . . . 2 2 1 Assault . | . . . . . . . . . . . . . . . . . Garrison . | . . . . . . . . . . . . . . . . . Intercept . | . . . . . . . . . . . . . . . . . Searches Triggered 1 | . . . . . . . . . . . . . . . . 1 Construction Impeded . | . . . . . . . . . . . . . . . . . Haulers Reinforced . | . . . . . . . . . . . . . . . . . Active Scanning Responses . | . . . . . . . . . . . . . . . . . Cargo Convoy Interrupts 1 | . . . . . . . . . . . . . . . 1 . Stealth | -11 -10 -10 -7 -7 -5 -5 -5 -4 -4 -4 -4 -3 -3 -3 -2 -1 --------- Run | Yrd Mat Sub Rec Scr Fac Upp Upp Fac Upp Upp War Pro Res Tes Res Acc Distress Signals 10 | . 1 . . . 1 . . 1 . . . . 1 3 3 . Communications Jammed 35 | . . . . . 2 . . . . . . . 4 29 . . Distress Signals 35 | . . . . . 2 . . . . . . . 4 29 . . Times Spotted 243 | . 2 20 1 . 19 7 1 17 8 1 . 5 10 20 83 49 Peak Tracking Total 25 | . 2 8 1 . 5 6 1 10 4 1 . 2 7 6 25 20 Tactical Retreats 40 | . . 4 . . 4 2 . 2 2 . . 1 3 1 14 7 Traps | -11 -10 -10 -7 -7 -5 -5 -5 -4 -4 -4 -4 -3 -3 -3 -2 -1 ------- Run | Yrd Mat Sub Rec Scr Fac Upp Upp Fac Upp Upp War Pro Res Tes Res Acc Traps Triggered 9 | . 2 1 . . . . . 1 . . . . 2 . . 3 Indirectly . | . . . . . . . . . . . . . . . . . Trap Hack Attempts . | . . . . . . . . . . . . . . . . . Triggered . | . . . . . . . . . . . . . . . . . Disarmed . | . . . . . . . . . . . . . . . . . Reprogrammed . | . . . . . . . . . . . . . . . . . Reused . | . . . . . . . . . . . . . . . . . Traps Extracted . | . . . . . . . . . . . . . . . . . Installed . | . . . . . . . . . . . . . . . . . Triggered . | . . . . . . . . . . . . . . . . . Machines | -11 -10 -10 -7 -7 -5 -5 -5 -4 -4 -4 -4 -3 -3 -3 -2 -1 ---------- Run | Yrd Mat Sub Rec Scr Fac Upp Upp Fac Upp Upp War Pro Res Tes Res Acc Machines Disabled 6 | . . 1 . . 1 1 . . . . . . . 3 . . Max in Single Turn 1 | . . 1 . . 1 1 . . . . . . . 1 . . Garrison Access 1 | . . . . . . . . . . . . . . 1 . . Machines Repaired . | . . . . . . . . . . . . . . . . . Machines Dismantled . | . . . . . . . . . . . . . . . . . Machines Sabotaged . | . . . . . . . . . . . . . . . . . Overloaded Fab Kills . | . . . . . . . . . . . . . . . . . Hacking | -11 -10 -10 -7 -7 -5 -5 -5 -4 -4 -4 -4 -3 -3 -3 -2 -1 --------- Run | Yrd Mat Sub Rec Scr Fac Upp Upp Fac Upp Upp War Pro Res Tes Res Acc Machines Accessed 54 | . . . 8 6 6 1 1 1 . . 8 . 2 9 7 5 Terminals 22 | . . . 6 . 3 . 1 . . . . . . 5 3 4 Fabricators . | . . . . . . . . . . . . . . . . . Repair Stations 2 | . . . . . . . . 1 . . . . . 1 . . Recycling Units 9 | . . . 2 . 3 . . . . . . . . . 3 1 Scanalyzers 5 | . . . . . . . . . . . . . 2 2 1 . Garrison Access 1 | . . . . . . . . . . . . . . 1 . . Total Hacks 128 | . . . 28 30 11 1 1 2 . . 9 . 3 18 17 8 Successful 76 | . . . 16 30 6 1 1 2 . . 9 . 1 5 3 2 Failed 52 | . . . 12 . 5 . . . . . . . 2 13 14 6 Catastrophic 15 | . . . 1 . 1 . . . . . . . 1 6 4 2 Database Lockouts . | . . . . . . . . . . . . . . . . . Manual 69 | . . . 25 . 11 . . . . . . . . 9 16 8 Terminals 52 | . . . 23 . 6 . 1 . . . . . . 9 7 6 Fabricators . | . . . . . . . . . . . . . . . . . Repair Stations 3 | . . . . . . . . 2 . . . . . 1 . . Recycling Units 21 | . . . 5 . 5 . . . . . . . . . 9 2 Scanalyzers 9 | . . . . . . . . . . . . . 3 5 1 . Garrison Access 3 | . . . . . . . . . . . . . . 3 . . Terminal Hacks 47 | . . . 3 30 . 1 1 . . . 9 . . . 2 1 Record 38 | . . . . 29 . 1 1 . . . 7 . . . . . Open Door 2 | . . . . . . . . . . . 2 . . . . . Branch Access Points 1 | . . . . . . . . . . . . . . . 1 . Terminal Index 1 | . . . 1 . . . . . . . . . . . . . Zone Layout 4 | . . . 2 . . . . . . . . . . . 1 1 Proto ID Catalog 1 | . . . . 1 . . . . . . . . . . . . Fabricator Hacks . | . . . . . . . . . . . . . . . . . Repair Station Hacks 2 | . . . . . . . . 2 . . . . . . . . Scan Component 1 | . . . . . . . . 1 . . . . . . . . Repair 1 | . . . . . . . . 1 . . . . . . . . Recycling Unit Hacks 2 | . . . 2 . . . . . . . . . . . . . Retrieve Components 2 | . . . 2 . . . . . . . . . . . . . Scanalyzer 3 | . . . . . . . . . . . . . 1 2 . . Retrieve Study 3 | . . . . . . . . . . . . . 1 2 . . Garrison Access Hacks 1 | . . . . . . . . . . . . . . 1 . . Seal Access 1 | . . . . . . . . . . . . . . 1 . . Unauthorized Hacks 21 | . . . 11 . 6 . . . . . . . . 2 1 1 Terminals 15 | . . . 10 . 3 . . . . . . . . 2 . . Assimilate 1 | . . . . . . . . . . . . . . 1 . . Botnet 7 | . . . 5 . 1 . . . . . . . . 1 . . Skim 7 | . . . 5 . 2 . . . . . . . . . . . Fabricators . | . . . . . . . . . . . . . . . . . Repair Stations . | . . . . . . . . . . . . . . . . . Recycling Units 6 | . . . 1 . 3 . . . . . . . . . 1 1 Recyclers 1 | . . . 1 . . . . . . . . . . . . . Fedlink 5 | . . . . . 3 . . . . . . . . . 1 1 Scanalyzers . | . . . . . . . . . . . . . . . . . Garrison Access . | . . . . . . . . . . . . . . . . . Data Cores Recovered . | . . . . . . . . . . . . . . . . . Used . | . . . . . . . . . . . . . . . . . Hacking Detections 32 | . . . 7 . 3 . . . . . . . 2 8 7 5 Full Trace Events 4 | . . . . . . . . . . . . . . . 3 1 Feedback Events 1 | . . . . . . . . . . . . . . . 1 . Corruption 1 | . . . . . . . . . . . . . . . 1 . Feedback Blocked . | . . . . . . . . . . . . . . . . . Robot Schematics Acquired 5 | . . . . . . . . . . . . . . 5 . . Robots Built . | . . . . . . . . . . . . . . . . . Authchips . | . . . . . . . . . . . . . . . . . Time . | . . . . . . . . . . . . . . . . . Total Robot Build Rating . | . . . . . . . . . . . . . . . . . Part Schematics Acquired 5 | . . . . . . . . . . . . . . 5 . . Parts Built . | . . . . . . . . . . . . . . . . . Authchips . | . . . . . . . . . . . . . . . . . Time . | . . . . . . . . . . . . . . . . . Total Part Build Rating . | . . . . . . . . . . . . . . . . . Part Studies Acquired 3 | . . . . . . . . . . . . . 1 2 . . Parts Repaired 1 | . . . . . . . . 1 . . . . . . . . Time 25 | . . . . . . . . 25 . . . . . . . . Parts Recycled . | . . . . . . . . . . . . . . . . . Recycled Matter . | . . . . . . . . . . . . . . . . . Retrieved Matter . | . . . . . . . . . . . . . . . . . Retrieved Components 7 | . . . 7 . . . . . . . . . . . . . Parts Scanalyzed . | . . . . . . . . . . . . . . . . . Part Schematics Acquired . | . . . . . . . . . . . . . . . . . Parts Damaged . | . . . . . . . . . . . . . . . . . Bothacking | -11 -10 -10 -7 -7 -5 -5 -5 -4 -4 -4 -4 -3 -3 -3 -2 -1 ------------ Run | Yrd Mat Sub Rec Scr Fac Upp Upp Fac Upp Upp War Pro Res Tes Res Acc Used RIF Installer . | . . . . . . . . . . . . . . . . . Robots Hacked . | . . . . . . . . . . . . . . . . . Non-combat . | . . . . . . . . . . . . . . . . . Combat . | . . . . . . . . . . . . . . . . . Robot Hacks Applied . | . . . . . . . . . . . . . . . . . Relay Couplers Released . | . . . . . . . . . . . . . . . . . Fabnet Peak Effective % . | . . . . . . . . . . . . . . . . . Robots Rewired . | . . . . . . . . . . . . . . . . . Allies Hacked . | . . . . . . . . . . . . . . . . . Hacks Repelled . | . . . . . . . . . . . . . . . . . Allies | -11 -10 -10 -7 -7 -5 -5 -5 -4 -4 -4 -4 -3 -3 -3 -2 -1 -------- Run | Yrd Mat Sub Rec Scr Fac Upp Upp Fac Upp Upp War Pro Res Tes Res Acc Total Allies 1 | . . . . . . . . . . . . . . 1 . . Largest Group 1 | . . . . . . . . . . . . . . 1 . . Highest-Rated Group 45 | . . . . . . . . . . . . . . 45 . . Highest-Rated Ally 45 | . . . . . . . . . . . . . . 45 . . Initial UFD Resources 76 | . . . . . 39 55 55 58 58 58 58 62 62 62 64 76 Total Orders . | . . . . . . . . . . . . . . . . . Ally Attacks . | . . . . . . . . . . . . . . . . . Total Damage . | . . . . . . . . . . . . . . . . . Kills . | . . . . . . . . . . . . . . . . . Allies Corrupted 1 | . . . . . . . . . . . . . . 1 . . Allies Melted . | . . . . . . . . . . . . . . . . . Intel | -11 -10 -10 -7 -7 -5 -5 -5 -4 -4 -4 -4 -3 -3 -3 -2 -1 ------- Run | Yrd Mat Sub Rec Scr Fac Upp Upp Fac Upp Upp War Pro Res Tes Res Acc Active Infowar (turns) 7220 | 3 229 493 195 . 536 397 686 692 981 251 371 519 134 844 425 464 Optics 1397 | . . 2 . . . . . . . . . . . 548 383 464 Sensors 5402 | . . . . . 337 397 686 692 981 251 371 519 134 770 211 53 Terrain 4520 | . . . . . 15 397 686 675 795 251 371 519 134 479 198 . Seismic 999 | 3 229 491 . . 234 . . . . . . . . . 42 . Machine Analysis 146 | . . . . . . . . . . . . . . . 146 . Triangulation 221 | . . . . . 221 . . . . . . . . . . . Jamming 962 | . . . . . 102 125 29 249 14 2 . 11 53 377 . . ECM 205 | . . . 195 . . . . . . . . . . . . 10 Robot Analysis Total . | . . . . . . . . . . . . . . . . . Derelict Logs Recovered 7 | . . . . 3 . . 2 . 1 1 . . . . . . Drone Launches . | . . . . . . . . . . . . . . . . . Drone Recoveries . | . . . . . . . . . . . . . . . . . Exploration | -11 -10 -10 -7 -7 -5 -5 -5 -4 -4 -4 -4 -3 -3 -3 -2 -1 ------------- Run | Yrd Mat Sub Rec Scr Fac Upp Upp Fac Upp Upp War Pro Res Tes Res Acc Turns Passed 11170 | 64 229 975 746 2247 841 397 686 734 1063 251 371 519 134 844 605 464 Spaces Moved 10630 | 31 123 569 484 1397 743 445 1133 546 778 445 693 469 206 827 1070 671 Core 340 | 2 . 1 1 . . . . . 84 . . . . . 66 186 Treads 2306 | 29 123 378 286 1397 93 . . . . . . . . . . . Legs 90 | . . . . . . . . . . . . . . . . 90 Wheels 514 | . . 190 197 . . . . . 127 . . . . . . . Hover 6276 | . . . . . 650 445 1133 546 567 445 693 469 206 827 295 . Flight 1104 | . . . . . . . . . . . . . . . 709 395 Fastest Speed 28 | 50 160 110 110 160 56 56 56 55 52 52 52 52 48 44 28 45 Average Speed 82 | 152 160 143 140 160 71 56 56 60 107 52 52 52 50 49 44 58 Slowest Speed 450 | 160 160 450 350 160 240 56 56 121 450 52 52 111 52 110 450 120 Overloaded Moves . | . . . . . . . . . . . . . . . . . Propulsion Burnouts . | . . . . . . . . . . . . . . . . . Robots Hopped 38 | . . . . . . . . . . . . . . . 32 6 Potential Cave-ins 4 | . . . . . . . . . 2 . . . . 2 . . Cave-ins Triggered . | . . . . . . . . . . . . . . . . . Exploration Rate (%) 50 | 5 29 33 94 89 23 64 87 10 85 57 91 63 9 57 35 24 Regions Visited 16 Branch Regions 10 Pre-discovered Areas 4 | . . . 2 . 1 . . . 1 . . . . . . . Known Exits Taken 10 | . . . . . 1 1 1 1 1 1 1 1 1 1 . . Unknown Exits Taken 6 | 1 1 1 1 1 . . . . . . . . . . 1 . Scrap Searched 21 | . . . . 10 . . 3 . 3 4 . 1 . . . . Spaces Dug 34 | . . . . . 3 . . 9 7 . . 1 2 9 1 2 Terrain Destroyed 95 | . . . . . 3 . 7 19 26 1 . 1 2 10 24 2 Melee 10 | . . . . . 3 . . . . . . 1 2 3 1 . Projectile 45 | . . . . . . . 7 19 9 1 . . . 7 . 2 AOE 40 | . . . . . . . . . 17 . . . . . 23 . Terrain Rammed . | . . . . . . . . . . . . . . . . . Walls Destroyed . | . . . . . . . . . . . . . . . . . Machines Disabled . | . . . . . . . . . . . . . . . . . Actions | -11 -10 -10 -7 -7 -5 -5 -5 -4 -4 -4 -4 -3 -3 -3 -2 -1 --------- Run | Yrd Mat Sub Rec Scr Fac Upp Upp Fac Upp Upp War Pro Res Tes Res Acc Total 12572 | 40 149 644 543 1411 979 582 1159 919 975 458 704 735 234 1189 1131 720 Wait 1341 | . 20 7 36 . 122 130 . 327 147 2 . 250 16 237 28 19 Move 10544 | 30 122 568 483 1396 742 444 1132 545 777 444 692 468 205 826 1011 659 Hop 32 | . . . . . . . . . . . . . . . 26 6 Pick Up 57 | 1 2 7 4 5 4 . 2 5 2 1 5 4 3 8 1 3 Fast Attach 93 | 7 . 4 4 3 16 1 5 4 2 3 2 2 1 14 17 8 Attach 66 | . . 7 2 . 8 1 . 8 9 1 . 1 2 12 9 6 Detach 62 | . . 7 3 1 5 1 2 9 6 2 2 . 1 10 11 2 Swap 3 | . 1 . 1 . . . . . . . . . . . 1 . Drop 46 | . 1 2 4 6 4 . 5 1 . . 3 4 3 9 4 . Fire 156 | 2 3 42 . . 1 5 13 20 32 5 . . . 12 10 11 Melee 165 | . . . 6 . 77 . . . . . . 6 3 60 13 . Ram 5 | . . . . . . . . . . . . . . . . 5 Kick 1 | . . . . . . . . . . . . . . . . 1 Crush . | . . . . . . . . . . . . . . . . . Escape Stasis 1 | . . . . . . . . . . . . . . 1 . . Rewire . | . . . . . . . . . . . . . . . . . Trap . | . . . . . . . . . . . . . . . . . Miscellaneous . | . . . . . . . . . . . . . . . . . Route ------- -11/Scrapyard -10/Materials -10/Subcaves (discovered 2 exits: [*Mat] / *Rec) -7/Recycling (discovered 2 exits: *Fac / *Scr) -7/Scraptown (discovered 2 exits: *Fac x2) -5/Factory (discovered 4 exits: *Fac x2 / *Upp x2) -5/Upper Caves -5/Upper Caves -4/Factory -4/Upper Caves -4/Upper Caves (discovered 2 exits: *Res / *War) -4/Warlord -3/Proximity Caves -3/Research (discovered 3 exits: Res x2 / *Tes) -3/Testing -2/Research (discovered 4 exits: *Acc x2 / Qua x2) -1/Access History --------- Turn | Location | Event 27 | -11/Scrapyard | Discovered new exit (range 16) 65 | -11/Scrapyard | Entered Materials 288 | -10/Materials | Discovered new exit (range 5) 294 | -10/Materials | Entered Subcaves 310 | -10/Subcaves | Build established: Mutant 586 | -10/Subcaves | Ambushed by angry Subdweller bent on revenge 1001 | -10/Subcaves | Discovered new exit (range 15) 1202 | -10/Subcaves | Discovered new exit (range 7) 1269 | -10/Subcaves | Entered Recycling 1500 | -7/Recycling | Core integrity fell below 50% 1768 | -7/Recycling | Learned Hub_04(d) garrison access intel 1851 | -7/Recycling | Learned 2 Proximity Caves zone layouts 1879 | -7/Recycling | Learned Factory fabricator intel 1883 | -7/Recycling | Discovered new exit (range 5) 1898 | -7/Recycling | Learned location of Extension (-6) 1905 | -7/Recycling | Learned location of Proximity Caves (-4) 1906 | -7/Recycling | Learned Factory emergency access door positions 1912 | -7/Recycling | Learned 2 Proximity Caves zone layouts 1926 | -7/Recycling | Learned Hub_04(d) security intel 1941 | -7/Recycling | Scanned before Scraplab entrance 1950 | -7/Recycling | Learned location of 3 exits from Factory 1965 | -7/Recycling | Entered Scraplab 2013 | -7/Recycling | Discovered new exit (range 2) 2015 | -7/Recycling | Entered Scraptown 2015 | -7/Scraptown | System corruption cleaned by C-Scrubber 2345 | -7/Scraptown | Discovered new exit (range 11) 2427 | -7/Scraptown | Scanned Subdweller tech in exchange for log data 2430 | -7/Scraptown | Learned 12 Research zone layouts 2432 | -7/Scraptown | Learned Research emergency access door positions 2433 | -7/Scraptown | Learned Research stockpile data 2479 | -7/Scraptown | Visited The Evicted 2531 | -7/Scraptown | Visited Spacefarers 2551 | -7/Scraptown | Visited Cyclists 2600 | -7/Scraptown | Visited UFD Registry 2600 | -7/Scraptown | Registered with UFD as "Softlever" 2619 | -7/Scraptown | Visited Fellowship of the Rings 2639 | -7/Scraptown | Visited Symbiants 2747 | -7/Scraptown | Entered Cyclist Reading Room 2783 | -7/Scraptown | Visited Bundlers 3319 | -7/Scraptown | Visited Abandonware Association 3337 | -7/Scraptown | Learned abandonware demo "REBOOT5.EXE" 3375 | -7/Scraptown | Visited Derelict Rescue Squad 3423 | -7/Scraptown | Visited Scrapoid Research Area 3525 | -7/Scraptown | Visited Junk Repository 3570 | -7/Scraptown | Visited DA-N13 Charitable Foundation 3577 | -7/Scraptown | Found DCF Scrap (30 items) 3642 | -7/Scraptown | Visited Science Guys 3722 | -7/Scraptown | Delivered Scrap Shield to a Scientist 3867 | -7/Scraptown | Build established: Gladiator 3886 | -7/Scraptown | Visited Junk Repository 3927 | -7/Scraptown | Visited Scrapoid Pod Storage 3951 | -7/Scraptown | Visited Science Testing Area 4168 | -7/Scraptown | Met Optimus 4168 | -7/Scraptown | Accepted into 0bPrime 4259 | -7/Scraptown | Discovered new exit (range 3) 4262 | -7/Scraptown | Entered Factory 4262 | -5/Factory | Evolved 10 slots: Propulsion x2, Utility x8 4263 | -5/Factory | Identified exit to Upper Caves 4263 | -5/Factory | Identified exit to Factory 4265 | -5/Factory | Loaded intel: 6 fabricator locations 4321 | -5/Factory | Loaded intel: 8 recycling unit locations 4554 | -5/Factory | Lost 4 parts (1p2n1u) 4572 | -5/Factory | Build established: Derelict-Gladiator 4580 | -5/Factory | Learned location of Protoforge (-2) 4779 | -5/Factory | Lost 4 parts (1p3u) 4840 | -5/Factory | Discovered exit to Factory (range 8) 5103 | -5/Factory | Entered Upper Caves 5105 | -5/Upper Caves | UFD Scientist delivered a prototype 5105 | -5/Upper Caves | Attracted the attention of an 0b10 checkpoint 5106 | -5/Upper Caves | Found Prototype Protection 5106 | -5/Upper Caves | Identified Enh. Scrap Shield 5191 | -5/Upper Caves | Ambushed by wild Derelicts 5396 | -5/Upper Caves | Build established: Infiltrator-Scout 5478 | -5/Upper Caves | Discovered new exit (range 8) 5500 | -5/Upper Caves | Identified exit to Upper Caves 5500 | -5/Upper Caves | Entered another Upper Caves area 5561 | -5/Upper Caves | Learned Factory garrison access intel 5599 | -5/Upper Caves | Found DCF Scrap (15 items) 5780 | -5/Upper Caves | Attracted the attention of an 0b10 checkpoint 5808 | -5/Upper Caves | Learned Factory terminal intel 6051 | -5/Upper Caves | Build established: Hacker-Scout 6180 | -5/Upper Caves | Discovered exit to Factory (range 5) 6186 | -5/Upper Caves | Entered Factory 6186 | -4/Factory | Evolved 2 slots: Propulsion x1, Utility x1 6187 | -4/Factory | Loaded intel: 26 terminal locations 6188 | -4/Factory | Loaded intel: 4 garrison access locations 6519 | -4/Factory | Repaired Gravmag Array 6878 | -4/Factory | Discovered new exit (range 15) 6919 | -4/Factory | Identified exit to Upper Caves 6920 | -4/Factory | Entered Upper Caves 7266 | -4/Upper Caves | Build established: Derelict-Mutant 7830 | -4/Upper Caves | Spotted B-86 Titan 7977 | -4/Upper Caves | Discovered new exit (range 15) 7983 | -4/Upper Caves | Identified exit to Upper Caves 7983 | -4/Upper Caves | Entered another Upper Caves area 7986 | -4/Upper Caves | Discovered new exit (range 12) 8016 | -4/Upper Caves | Identified exit to Research 8197 | -4/Upper Caves | Discovered new exit (range 13) 8199 | -4/Upper Caves | Learned Research emergency access door positions 8233 | -4/Upper Caves | Identified exit to Warlord 8234 | -4/Upper Caves | Entered Warlord 8252 | -4/Warlord | Discovered new exit (range 14) 8263 | -4/Warlord | System corruption cleaned by Quarantine Array 8303 | -4/Warlord | Opened side exit 8360 | -4/Warlord | Build established: Derelict-Ninja 8413 | -4/Warlord | Visited the Vortex Lab 8432 | -4/Warlord | Warlord's base attacked by MAIN.C 8501 | -4/Warlord | Rebuked by Warlord 8604 | -4/Warlord | Identified exit to Proximity Caves 8605 | -4/Warlord | Entered Proximity Caves 8671 | -3/Proximity Caves | Found Alien Artifact 8671 | -3/Proximity Caves | Identified Core Expander 8671 | -3/Proximity Caves | Installed Core Expander, added new Utility slot 8767 | -3/Proximity Caves | Spotted B-86 Titan 9057 | -3/Proximity Caves | Discovered exit to Research (range 15) 9124 | -3/Proximity Caves | Entered Research 9124 | -3/Research | Evolved 2 slots: Power x1, Propulsion x1 9125 | -3/Research | Identified exit to Testing 9125 | -3/Research | Identified exit to Research 9258 | -3/Research | Entered Testing 9282 | -3/Testing | Found Prototype Device 9282 | -3/Testing | Identified Exp. Thermal Defense Suite 9524 | -3/Testing | Scanned by Researcher 9654 | -3/Testing | System corruption reached 10% 9707 | -3/Testing | Lost 9 parts (2p2n5u) 9761 | -3/Testing | Found Prototype Device 9761 | -3/Testing | Identified AEGIS Remote Shield 10097 | -3/Testing | Discovered exit to Research (range 13) 10102 | -3/Testing | Entered Research 10102 | -2/Research | Evolved 2 slots: Utility x2 10331 | -2/Research | Released all parts (11) 10362 | -2/Research | Lost 10 parts (1p5n4u) 10453 | -2/Research | Discovered new exit (range 9) 10457 | -2/Research | Identified exit to Quarantine 10511 | -2/Research | Discovered new exit (range 10) 10576 | -2/Research | Loaded intel: 4 recycling unit locations 10650 | -2/Research | Core integrity fell below 50% 10672 | -2/Research | System corruption reached 10% 10697 | -2/Research | Core integrity fell below 20% 10703 | -2/Research | Spotted Striker 10704 | -2/Research | Cargo convoy interrupted 10707 | -2/Research | Entered Access 10707 | -1/Access | Evolved 2 slots: Propulsion x1, Utility x1 10741 | -1/Access | Loaded intel: 4 recycling unit locations 10797 | -1/Access | Found Prototype Device 10797 | -1/Access | Identified Exp. ECM Suite 10823 | -1/Access | Build established: Mutant 10957 | -1/Access | Search patrols dispatched 10977 | -1/Access | Spotted B-99 Colossus 11128 | -1/Access | Core integrity fell below 50% 11152 | -1/Access | Core integrity fell below 20% 11171 | -1/Access | Destroyed by G-73 Enforcer with Phase Gun Last Messages --------------- 11133_ Slug penetrates Wall. 11138_ Q827-u: IFF CHECK FAIL. 11139_ C-30 ARC bursts open, deploying its payload. 11139_ G-73 Enforcer unfolds itself. 11141_ Slug penetrates Sealed Freight Elevator. 11143_ Slug penetrates U-05 Engineer. 11144_ Slug penetrates Sealed Freight Elevator. 11146_ Penetrated by Slug. 11147_ K-01 Serf destroyed. 11158_ System corrupted: Matter fused (-5). 11164_ P-80 Master resets P-80 Master, system corruption cleaned. 11164_ Slug penetrates Wall. 11167_ Penetrated by Slug. 11167_ Slug penetrates Wall. 11168_ K-01 Serf cleans the Sealed Freight Elevator. 11171_ Slammed into G-73 Enforcer. Map ----- +----------------------------------------------------+ | ?????????????????????????????????????????????????? | | ?????????????????????????????????????????????????? | | ?????????????????????????????????????????????????? | | ?????????????????????????????????????????????????? | | ???????????????????########??????????????????????? | | ???????????????????# #??????????????????????? | | ???????????????????# #??????????????????????? | | ???????????????????# #??????????????????????? | | ???????????????????# #??????????????????????? | | ???????######??????# #??????????????????????? | | ######## ######## #??????????????????????? | | # #??????????????????????? | | % / #??????????????????????? | | ####+### ###### # #??????????????????????? | | ???????## ##????# # #??????????????????????? | | ????????# #?????# # #??????????????????????? | | ????????# #?????#h# #??????????????????????? | | ## #?????# ; #??????????????????????? | | ## #?????# #h #??????????????????????? | | " ## #????##h#;######??????????????????????? | | " ## #????# gA* #??????????????????????? | | " ## #????# g=g #??????????????????????? | | " ## #????# #??????????????????????? | | " ## #????# k #########??????????????? | | ## #????# # #??????????????? | | ## ###### g @# ^ #??????????????? | | ######### %"+ k g# #??????????????? | | ###### """"" k/ #??????????##### | | #########+###???# """"" # #????????? "" | | ???# ???# """"" # #????????? "" | | #??# ???# """"" # ########? """"" | | #??# " ???# """""gg# #? """"" | | #??# """"???# """"" # # "" | | #??# """""???# # # "" | | #??# """"???# + + | | #??# """"???# # # | | #??# " ???########### # | | ???# ?????????????# #? | | ???# ???????##########+### #? | | ???# """ """???????# # #?? | | ???# """T"""???????# # #??###### | | ???##########???????# # #???????? | | ###############?????# # #???????? | | ####### " # #???????? | | + """" # #????? # | | #### """"" # ??? | | #+#### #??# """"" # ?? | | # = #??# """" # ? | | # #### " # """""""" | | """ # + # """""""" | +----------------------------------------------------+ Best States ------------- Heat Dissipation 52 Energy Generation 49 Energy Capacity 310 Matter Stores 300 Matter Capacity 300 Sight Range 23 Robot Scan Range 18 Terrain Scan Range 16 Terrain Scan Density 610 ECM Strength 3 Jamming Range 14 Power Amplification 40 Additional Mass Support 20 Armor Coverage 800 Resistance: EM 20 Melee Speed Boost 20 Evasion (%) 64 Melee Accuracy 12 Target Analysis 11 Core Analysis 6 Recoil Reduction 2 Offensive Hacking 10 Defensive Hacking 22 Item Schematics ----------------- Prc. Energy Filter | -3/Testing | Archive Exp. Thermal Shield | -3/Testing | Archive Hvy. Wave Gun | -3/Testing | Archive Centrium Medium Armor Plating | -3/Testing | Archive Exp. Power Amplifier | -3/Testing | Archive Robot Schematics ------------------ A-15 Conveyor | -3/Testing | Archive E-15 Imp | -3/Testing | Archive B-60 Warrior | -3/Testing | Archive R-10 Processor | -3/Testing | Archive A-02 Transporter | -3/Testing | Archive Fabricated ------------ Nothing Repaired ---------- Gravmag Array | 60% | -4/Factory Studied --------- Imp. Antigrav System | -3/Research | Hacked Gravmag Array | -3/Testing | Hacked Antigrav Array | -3/Testing | Hacked Alien Tech Used ----------------- Core Expander Achievements -------------- Live, Flee, And Rebuild Tailor-made Challenges ------------ None Game ------ Seed MassAlloyBlasthammer Manual? 0 Play Time 02:16:24 Cumulative 62.7 hours Start 2026.07.15 @ 19:17:25 End 2026.07.16 @ 11:49:55 Sessions 5 Manual Loads 0 Difficulty Rogue Special Mode None Game No. 68 Rogue 68 Adventurer 0 Explorer 0 Win Type - Total 1 Types 1/0/0/0/0/0/0/0/0/0 Lore% 52 Gallery% 42 Achievement% 38 Wizard Run 0 Options --------- Layout 1 ASCII 0 Keyboard 1 Movement Arrows Keybinds 1 Fullscreen 2 Font 24/Smallcaps Map View 50x40 Zoom Use 0% Tactical HUD 1 Map Filters NONE Filters NONE Steam 1 RUN: 6c0f026e-34cf-4ef4-bd51-a186ad8515e7